[Event "Titled Tuesday Blitz July 18 Early 2023"]
[White "Siniauski, Artsiom"]
[Black "Stribuk, Artiom"]
[WhiteFideId "13512269"]
[BlackFideId "13515659"]
[WhiteElo "2559"]
[BlackElo "2769"]
[Result "1-0"]
[Round "6"]
[TimeControl "180+2"]
[Date "2023.07.18"]
[WhiteClock "0:00:05"]
[BlackClock "0:00:00"]
[Board "55"]

1. e4 {[%clk 0:02:58]}  c5 {[%clk 0:02:58]} 2. Nf3 {[%clk 0:02:58]}  d6 {[%clk 0:02:58]} 3. Bb5+ {[%clk 0:02:57]}  Nd7 {[%clk 0:02:58]} 4. d4 {[%clk 0:02:56]}  cxd4 {[%clk 0:02:56]} 5. Qxd4 {[%clk 0:02:57]}  a6 {[%clk 0:02:52]} 6. Bxd7+ {[%clk 0:02:57]}  Bxd7 {[%clk 0:02:53]} 7. c4 {[%clk 0:02:57]}  Nf6 {[%clk 0:02:43]} 8. Bg5 {[%clk 0:02:49]}  e6 {[%clk 0:02:43]} 9. O-O {[%clk 0:02:42]}  Be7 {[%clk 0:02:43]} 10. Nc3 {[%clk 0:02:42]}  O-O {[%clk 0:02:43]} 11. Rfd1 {[%clk 0:02:40]}  Bc6 {[%clk 0:02:41]} 12. Qd3 {[%clk 0:02:20]}  h6 {[%clk 0:02:37]} 13. Bf4 {[%clk 0:02:19]}  b5 {[%clk 0:02:37]} 14. cxb5 {[%clk 0:02:15]}  Bxb5 {[%clk 0:02:38]} 15. Nxb5 {[%clk 0:02:14]}  axb5 {[%clk 0:02:39]} 16. Bxd6 {[%clk 0:01:54]}  Bxd6 {[%clk 0:02:24]} 17. Qxd6 {[%clk 0:01:55]}  Qxd6 {[%clk 0:02:23]} 18. Rxd6 {[%clk 0:01:56]}  Nxe4 {[%clk 0:02:24]} 19. Rb6 {[%clk 0:01:51]}  Rfc8 {[%clk 0:02:18]} 20. Ne1 {[%clk 0:01:33]}  Rc5 {[%clk 0:01:43]} 21. f3 {[%clk 0:01:32]}  Nd2 {[%clk 0:01:41]} 22. Rd1 {[%clk 0:01:18]}  Nc4 {[%clk 0:01:31]} 23. Rb7 {[%clk 0:01:13]}  Nxb2 {[%clk 0:01:26]} 24. Rdd7 {[%clk 0:01:00]}  Rf5 {[%clk 0:01:21]} 25. Nc2 {[%clk 0:00:46]}  Rxa2 {[%clk 0:01:11]} 26. Nd4 {[%clk 0:00:43]}  Rf6 {[%clk 0:01:04]} 27. h4 {[%clk 0:00:30]}  Nd3 {[%clk 0:00:34]} 28. h5 {[%clk 0:00:19]}  Nf4 {[%clk 0:00:30]} 29. g4 {[%clk 0:00:19]}  Ra8 {[%clk 0:00:08]} 30. Nxb5 {[%clk 0:00:14]}  Nd5 {[%clk 0:00:08]} 31. Kg2 {[%clk 0:00:09]}  Rf8 {[%clk 0:00:07]} 32. Nd6 {[%clk 0:00:08]}  Rf4 {[%clk 0:00:03]} 33. Kg3 {[%clk 0:00:07]}  Rf6 {[%clk 0:00:02]} 34. Ne4 {[%clk 0:00:07]}  Rf4 {[%clk 0:00:03]} 35. Nc5 {[%clk 0:00:04]}  Rf6 {[%clk 0:00:02]} 36. Ra7 {[%clk 0:00:03]}  g6 {[%clk 0:00:01]} 37. Ne4 {[%clk 0:00:02]}  Rf4 {[%clk 0:00:01]} 38. hxg6 {[%clk 0:00:03]}  Rxe4 {[%clk 0:00:01]} 39. fxe4 {[%clk 0:00:03]}  Nf6 {[%clk 0:00:01]} 40. Rxf7 {[%clk 0:00:04]}  Nxe4+ {[%clk 0:00:02]} 41. Kf4 {[%clk 0:00:04]}  Ng5 {[%clk 0:00:01]} 42. Rxf8+ {[%clk 0:00:04]}  Kxf8 {[%clk 0:00:02]} 43. Ke5 {[%clk 0:00:04]}  Kg8 {[%clk 0:00:02]} 44. Kf6 {[%clk 0:00:04]}  Ne4+ {[%clk 0:00:03]} 45. Kxe6 {[%clk 0:00:04]}  Ng5+ {[%clk 0:00:03]} 46. Kf5 {[%clk 0:00:05]}  Kf8 {[%clk 0:00:01]} 47. Ra6 {[%clk 0:00:02]}  Kg7 {[%clk 0:00:01]} 48. Ra1 {[%clk 0:00:03]}  Kg8 {[%clk 0:00:01]} 49. Ra7 {[%clk 0:00:03]}  Kf8 {[%clk 0:00:01]} 50. Kf6 {[%clk 0:00:04]}  Ne4+ {[%clk 0:00:01]} 51. Ke5 {[%clk 0:00:05]}  Kg8 {[%clk 0:00:00]} 52. Kxe4 {[%clk 0:00:05]} 1-0


[Site "https://www.chess.com"]

[Event "Titled Tuesday Blitz July 18 Early 2023"]
[White "Palencia Morales, Wilson Guillermo"]
[Black "Dzhumagaliev, Yan"]
[WhiteFideId "4401859"]
[BlackFideId "24100110"]
[WhiteElo "2556"]
[BlackElo "2751"]
[Result "0-1"]
[Round "6"]
[TimeControl "180+2"]
[Date "2023.07.18"]
[WhiteClock "0:00:26"]
[BlackClock "0:00:58"]
[Board "57"]

1. d4 {[%clk 0:03:00]}  h5 {[%clk 0:03:00]} 2. c4 {[%clk 0:03:00]}  h4 {[%clk 0:03:01]} 3. Nc3 {[%clk 0:03:00]}  d6 {[%clk 0:03:01]} 4. Nf3 {[%clk 0:03:01]}  h3 {[%clk 0:03:01]} 5. gxh3 {[%clk 0:03:00]}  Bxh3 {[%clk 0:03:01]} 6. Bxh3 {[%clk 0:03:01]}  Rxh3 {[%clk 0:03:02]} 7. Rg1 {[%clk 0:03:02]}  Nd7 {[%clk 0:03:01]} 8. Qa4 {[%clk 0:02:59]}  c6 {[%clk 0:03:01]} 9. Bf4 {[%clk 0:02:56]}  g6 {[%clk 0:03:00]} 10. O-O-O {[%clk 0:02:55]}  Ngf6 {[%clk 0:02:57]} 11. c5 {[%clk 0:02:52]}  d5 {[%clk 0:02:55]} 12. Qb3 {[%clk 0:02:45]}  b6 {[%clk 0:02:52]} 13. Ng5 {[%clk 0:02:45]}  Rh4 {[%clk 0:02:47]} 14. Bg3 {[%clk 0:02:32]}  Rh5 {[%clk 0:02:46]} 15. h4 {[%clk 0:02:30]}  bxc5 {[%clk 0:02:42]} 16. e4 {[%clk 0:02:30]}  c4 {[%clk 0:02:40]} 17. Qc2 {[%clk 0:02:22]}  dxe4 {[%clk 0:02:12]} 18. Ncxe4 {[%clk 0:02:18]}  Nxe4 {[%clk 0:01:56]} 19. Qxe4 {[%clk 0:02:15]}  Nb6 {[%clk 0:01:57]} 20. Ne6 {[%clk 0:02:09]}  Qd7 {[%clk 0:01:47]} 21. Nc7+ {[%clk 0:02:07]}  Kd8 {[%clk 0:01:48]} 22. Nxa8 {[%clk 0:02:07]}  Nxa8 {[%clk 0:01:48]} 23. Kb1 {[%clk 0:01:59]}  Bh6 {[%clk 0:01:33]} 24. Rge1 {[%clk 0:01:39]}  Nb6 {[%clk 0:01:29]} 25. Qf3 {[%clk 0:01:32]}  Qf5+ {[%clk 0:01:22]} 26. Qxf5 {[%clk 0:01:31]}  Rxf5 {[%clk 0:01:23]} 27. Re5 {[%clk 0:01:27]}  Rf3 {[%clk 0:01:23]} 28. Ra5 {[%clk 0:01:23]}  f5 {[%clk 0:01:11]} 29. Bb8 {[%clk 0:01:02]}  Rxf2 {[%clk 0:01:11]} 30. Rxa7 {[%clk 0:01:01]}  Nd5 {[%clk 0:01:08]} 31. a4 {[%clk 0:00:47]}  c3 {[%clk 0:01:06]} 32. Rh1 {[%clk 0:00:34]}  Rxb2+ {[%clk 0:00:59]} 33. Ka1 {[%clk 0:00:26]}  Nb4 {[%clk 0:00:58]} 0-1


[Site "https://www.chess.com"]

[Event "Titled Tuesday Blitz July 18 Early 2023"]
[White "Nazari, Arad"]
[Black "Portela Peleteiro, Alberto"]
[WhiteFideId "12577324"]
[BlackFideId "22276106"]
[WhiteElo "2748"]
[BlackElo "2555"]
[Result "1-0"]
[Round "6"]
[TimeControl "180+2"]
[Date "2023.07.18"]
[WhiteClock "0:00:27"]
[BlackClock "0:00:47"]
[Board "58"]

1. e4 {[%clk 0:03:00]}  c5 {[%clk 0:02:59]} 2. Nf3 {[%clk 0:02:51]}  Nc6 {[%clk 0:02:59]} 3. Bb5 {[%clk 0:02:51]}  g6 {[%clk 0:03:00]} 4. Bxc6 {[%clk 0:02:50]}  dxc6 {[%clk 0:03:00]} 5. d3 {[%clk 0:02:50]}  Bg7 {[%clk 0:03:00]} 6. h3 {[%clk 0:02:47]}  Nf6 {[%clk 0:03:00]} 7. Be3 {[%clk 0:02:47]}  O-O {[%clk 0:03:00]} 8. Nc3 {[%clk 0:02:48]}  b6 {[%clk 0:03:00]} 9. Qd2 {[%clk 0:02:48]}  Ne8 {[%clk 0:02:59]} 10. Bh6 {[%clk 0:02:47]}  Nc7 {[%clk 0:02:51]} 11. h4 {[%clk 0:02:39]}  f6 {[%clk 0:02:51]} 12. Bxg7 {[%clk 0:02:30]}  Kxg7 {[%clk 0:02:52]} 13. O-O-O {[%clk 0:02:30]}  e5 {[%clk 0:02:47]} 14. Nh2 {[%clk 0:02:27]}  Ne6 {[%clk 0:02:42]} 15. Ne2 {[%clk 0:02:25]}  a5 {[%clk 0:02:38]} 16. f4 {[%clk 0:02:22]}  a4 {[%clk 0:02:29]} 17. a3 {[%clk 0:02:15]}  b5 {[%clk 0:02:19]} 18. fxe5 {[%clk 0:02:07]}  fxe5 {[%clk 0:02:20]} 19. Ng4 {[%clk 0:02:07]}  Nf4 {[%clk 0:01:50]} 20. Nxe5 {[%clk 0:01:58]}  Qd6 {[%clk 0:01:50]} 21. Nxf4 {[%clk 0:01:50]}  Qxe5 {[%clk 0:01:50]} 22. g3 {[%clk 0:01:35]}  b4 {[%clk 0:01:50]} 23. axb4 {[%clk 0:01:22]}  a3 {[%clk 0:01:51]} 24. Qc3 {[%clk 0:01:21]}  Qxc3 {[%clk 0:01:33]} 25. bxc3 {[%clk 0:01:20]}  cxb4 {[%clk 0:01:31]} 26. cxb4 {[%clk 0:01:20]}  Bg4 {[%clk 0:01:32]} 27. Rde1 {[%clk 0:01:10]}  Rfb8 {[%clk 0:01:32]} 28. c3 {[%clk 0:01:01]}  c5 {[%clk 0:01:32]} 29. Nd5 {[%clk 0:00:50]}  Be6 {[%clk 0:01:32]} 30. Nc7 {[%clk 0:00:45]}  cxb4 {[%clk 0:01:32]} 31. Nxe6+ {[%clk 0:00:36]}  Kf6 {[%clk 0:01:32]} 32. Nc7 {[%clk 0:00:33]}  b3 {[%clk 0:01:08]} 33. Nxa8 {[%clk 0:00:31]}  Rxa8 {[%clk 0:01:02]} 34. Kb1 {[%clk 0:00:28]}  Ke6 {[%clk 0:00:59]} 35. d4 {[%clk 0:00:20]}  Rc8 {[%clk 0:01:00]} 36. Re3 {[%clk 0:00:19]}  Kd6 {[%clk 0:00:56]} 37. c4 {[%clk 0:00:19]}  Rxc4 {[%clk 0:00:55]} 38. Rxb3 {[%clk 0:00:18]}  Rxd4 {[%clk 0:00:55]} 39. Rxa3 {[%clk 0:00:19]}  Rxe4 {[%clk 0:00:56]} 40. Rf1 {[%clk 0:00:19]}  Ke5 {[%clk 0:00:54]} 41. Kc2 {[%clk 0:00:19]}  h5 {[%clk 0:00:54]} 42. Kd3 {[%clk 0:00:19]}  Rg4 {[%clk 0:00:53]} 43. Rf3 {[%clk 0:00:18]}  Rb4 {[%clk 0:00:52]} 44. Ra5+ {[%clk 0:00:19]}  Ke6 {[%clk 0:00:52]} 45. Rg5 {[%clk 0:00:19]}  Rb3+ {[%clk 0:00:51]} 46. Ke2 {[%clk 0:00:20]}  Rb2+ {[%clk 0:00:50]} 47. Kf1 {[%clk 0:00:21]}  Rb1+ {[%clk 0:00:50]} 48. Kg2 {[%clk 0:00:21]}  Rb2+ {[%clk 0:00:51]} 49. Rf2 {[%clk 0:00:22]}  Rb4 {[%clk 0:00:49]} 50. Rxg6+ {[%clk 0:00:23]}  Ke7 {[%clk 0:00:49]} 51. Rg5 {[%clk 0:00:23]}  Ke8 {[%clk 0:00:49]} 52. Rxh5 {[%clk 0:00:24]}  Ke7 {[%clk 0:00:49]} 53. Rg5 {[%clk 0:00:24]}  Ke8 {[%clk 0:00:50]} 54. h5 {[%clk 0:00:25]}  Rb6 {[%clk 0:00:50]} 55. Rg6 {[%clk 0:00:25]}  Rb5 {[%clk 0:00:50]} 56. h6 {[%clk 0:00:26]}  Rh5 {[%clk 0:00:50]} 57. g4 {[%clk 0:00:26]}  Rh4 {[%clk 0:00:51]} 58. g5 {[%clk 0:00:26]}  Rh5 {[%clk 0:00:52]} 59. Rg7 {[%clk 0:00:26]}  Rh4 {[%clk 0:00:47]} 60. Ra2 {[%clk 0:00:27]} 1-0


[Site "https://www.chess.com"]

[Event "Titled Tuesday Blitz July 18 Early 2023"]
[White "Mikhailovsky, Vladimir"]
[Black "Garv Gaur"]
[WhiteFideId "34105414"]
[BlackFideId "45030839"]
[WhiteElo "2737"]
[BlackElo "2553"]
[Result "0-1"]
[Round "6"]
[TimeControl "180+2"]
[Date "2023.07.18"]
[WhiteClock "0:00:00"]
[BlackClock "0:00:21"]
[Board "59"]

1. e4 {[%clk 0:02:52]}  g6 {[%clk 0:02:34]} 2. d4 {[%clk 0:02:50]}  Bg7 {[%clk 0:02:34]} 3. Nf3 {[%clk 0:02:50]}  c6 {[%clk 0:02:35]} 4. Bd3 {[%clk 0:02:46]}  d5 {[%clk 0:02:35]} 5. e5 {[%clk 0:02:47]}  Bg4 {[%clk 0:02:34]} 6. Nbd2 {[%clk 0:02:47]}  e6 {[%clk 0:02:34]} 7. h3 {[%clk 0:02:47]}  Bxf3 {[%clk 0:02:33]} 8. Nxf3 {[%clk 0:02:48]}  Ne7 {[%clk 0:02:33]} 9. O-O {[%clk 0:02:48]}  Nd7 {[%clk 0:02:34]} 10. c3 {[%clk 0:02:48]}  c5 {[%clk 0:02:33]} 11. Bf4 {[%clk 0:02:35]}  Nc6 {[%clk 0:02:32]} 12. Qd2 {[%clk 0:02:33]}  Qb6 {[%clk 0:02:31]} 13. Be3 {[%clk 0:01:55]}  cxd4 {[%clk 0:01:47]} 14. cxd4 {[%clk 0:01:52]}  O-O {[%clk 0:01:42]} 15. Rfc1 {[%clk 0:01:39]}  Rfc8 {[%clk 0:01:41]} 16. Rc3 {[%clk 0:01:38]}  Bf8 {[%clk 0:01:36]} 17. a3 {[%clk 0:01:35]}  Na5 {[%clk 0:01:35]} 18. b4 {[%clk 0:01:20]}  Nc4 {[%clk 0:01:33]} 19. Bxc4 {[%clk 0:00:52]}  dxc4 {[%clk 0:01:32]} 20. d5 {[%clk 0:00:52]}  Qc7 {[%clk 0:01:31]} 21. d6 {[%clk 0:00:37]}  Qc6 {[%clk 0:01:30]} 22. a4 {[%clk 0:00:27]}  Bg7 {[%clk 0:01:22]} 23. Bd4 {[%clk 0:00:21]}  Qd5 {[%clk 0:01:21]} 24. Qe3 {[%clk 0:00:19]}  Nb8 {[%clk 0:01:16]} 25. Rac1 {[%clk 0:00:17]}  a6 {[%clk 0:01:11]} 26. Bb6 {[%clk 0:00:08]}  Nd7 {[%clk 0:01:08]} 27. Bd4 {[%clk 0:00:08]}  b5 {[%clk 0:01:08]} 28. a5 {[%clk 0:00:07]}  Nb8 {[%clk 0:01:07]} 29. Rd1 {[%clk 0:00:03]}  Nc6 {[%clk 0:01:07]} 30. Rd2 {[%clk 0:00:04]}  Nxb4 {[%clk 0:01:02]} 31. Bb6 {[%clk 0:00:02]}  Nd3 {[%clk 0:01:02]} 32. Ne1 {[%clk 0:00:02]}  Bxe5 {[%clk 0:00:53]} 33. Nxd3 {[%clk 0:00:02]}  Bxc3 {[%clk 0:00:51]} 34. Rd1 {[%clk 0:00:01]}  cxd3 {[%clk 0:00:38]} 35. Rxd3 {[%clk 0:00:01]}  Qe5 {[%clk 0:00:39]} 36. d7 {[%clk 0:00:01]}  Rd8 {[%clk 0:00:20]} 37. Qxe5 {[%clk 0:00:01]}  Bxe5 {[%clk 0:00:20]} 38. Bxd8 {[%clk 0:00:01]}  Rxd8 {[%clk 0:00:21]} 39. g3 {[%clk 0:00:00]}  Bc7 {[%clk 0:00:21]} 0-1


[Site "https://www.chess.com"]

[Event "Titled Tuesday Blitz July 18 Early 2023"]
[White "Goltsev, Dmitry"]
[Black "Zavgorodniy, Sergiy"]
[WhiteFideId "24176710"]
[BlackFideId "14110148"]
[WhiteElo "2735"]
[BlackElo "2580"]
[Result "1-0"]
[Round "6"]
[TimeControl "180+2"]
[Date "2023.07.18"]
[WhiteClock "0:00:03"]
[BlackClock "0:00:17"]
[Board "60"]

1. e4 {[%clk 0:02:59]}  e5 {[%clk 0:02:59]} 2. Nf3 {[%clk 0:02:59]}  d6 {[%clk 0:02:59]} 3. d4 {[%clk 0:02:58]}  exd4 {[%clk 0:03:00]} 4. Nxd4 {[%clk 0:02:59]}  Nf6 {[%clk 0:03:01]} 5. Nc3 {[%clk 0:02:59]}  Be7 {[%clk 0:03:01]} 6. Be2 {[%clk 0:02:58]}  O-O {[%clk 0:03:01]} 7. O-O {[%clk 0:02:58]}  Re8 {[%clk 0:02:59]} 8. Bg5 {[%clk 0:02:57]}  Nxe4 {[%clk 0:02:51]} 9. Bxe7 {[%clk 0:02:50]}  Rxe7 {[%clk 0:02:50]} 10. Nd5 {[%clk 0:02:49]}  Re8 {[%clk 0:02:45]} 11. Bd3 {[%clk 0:02:48]}  Nc5 {[%clk 0:02:12]} 12. Re1 {[%clk 0:02:32]}  Rxe1+ {[%clk 0:02:09]} 13. Qxe1 {[%clk 0:02:33]}  Nxd3 {[%clk 0:02:07]} 14. cxd3 {[%clk 0:02:16]}  Bd7 {[%clk 0:01:49]} 15. Qe4 {[%clk 0:01:39]}  c6 {[%clk 0:01:37]} 16. Ne7+ {[%clk 0:01:16]}  Kh8 {[%clk 0:01:32]} 17. Re1 {[%clk 0:01:04]}  Na6 {[%clk 0:01:30]} 18. Re3 {[%clk 0:00:40]}  Nc5 {[%clk 0:01:19]} 19. Qh4 {[%clk 0:00:35]}  h6 {[%clk 0:01:10]} 20. b4 {[%clk 0:00:20]}  Ne6 {[%clk 0:01:08]} 21. Ndf5 {[%clk 0:00:20]}  Qf8 {[%clk 0:01:00]} 22. Nxd6 {[%clk 0:00:14]}  g5 {[%clk 0:00:41]} 23. Qh5 {[%clk 0:00:13]}  Qxe7 {[%clk 0:00:40]} 24. Qxh6+ {[%clk 0:00:13]}  Kg8 {[%clk 0:00:39]} 25. Rh3 {[%clk 0:00:03]}  Qf6 {[%clk 0:00:17]} 26. Qxf6 {[%clk 0:00:03]} 1-0


[Site "https://www.chess.com"]

[Event "Titled Tuesday Blitz July 18 Early 2023"]
[White "Arencibia Monduy, Antonio"]
[Black "Suyarov, Mukhammadzokhid"]
[WhiteFideId "3507939"]
[BlackFideId "14210495"]
[WhiteElo "2552"]
[BlackElo "2722"]
[Result "1/2-1/2"]
[Round "6"]
[TimeControl "180+2"]
[Date "2023.07.18"]
[WhiteClock "0:00:03"]
[BlackClock "0:00:40"]
[Board "61"]

1. e4 {[%clk 0:03:00]}  e6 {[%clk 0:03:00]} 2. d4 {[%clk 0:03:00]}  d5 {[%clk 0:03:01]} 3. e5 {[%clk 0:03:00]}  c5 {[%clk 0:03:01]} 4. c3 {[%clk 0:03:01]}  Nc6 {[%clk 0:03:02]} 5. Nf3 {[%clk 0:03:01]}  Bd7 {[%clk 0:03:02]} 6. Bd3 {[%clk 0:03:01]}  cxd4 {[%clk 0:03:02]} 7. O-O {[%clk 0:03:02]}  Qb6 {[%clk 0:03:03]} 8. a3 {[%clk 0:03:01]}  Rc8 {[%clk 0:03:02]} 9. b4 {[%clk 0:02:59]}  dxc3 {[%clk 0:03:02]} 10. Nxc3 {[%clk 0:03:00]}  Nxb4 {[%clk 0:03:02]} 11. axb4 {[%clk 0:02:53]}  Rxc3 {[%clk 0:03:02]} 12. Be3 {[%clk 0:02:43]}  Qxb4 {[%clk 0:02:57]} 13. Rxa7 {[%clk 0:02:32]}  Ne7 {[%clk 0:02:57]} 14. Bd2 {[%clk 0:02:21]}  Qb6 {[%clk 0:02:35]} 15. Rxb7 {[%clk 0:02:10]}  Qxb7 {[%clk 0:02:33]} 16. Bxc3 {[%clk 0:02:10]}  Ng6 {[%clk 0:02:30]} 17. Qd2 {[%clk 0:02:02]}  Be7 {[%clk 0:02:28]} 18. Rb1 {[%clk 0:02:01]}  Qc8 {[%clk 0:02:27]} 19. h4 {[%clk 0:01:36]}  Nxh4 {[%clk 0:02:17]} 20. Nxh4 {[%clk 0:01:35]}  Bxh4 {[%clk 0:02:18]} 21. Bb4 {[%clk 0:01:35]}  f5 {[%clk 0:01:58]} 22. Bd6 {[%clk 0:01:06]}  Kf7 {[%clk 0:01:52]} 23. Rb8 {[%clk 0:01:01]}  Qxb8 {[%clk 0:01:51]} 24. Bxb8 {[%clk 0:01:01]}  Rxb8 {[%clk 0:01:51]} 25. Qa5 {[%clk 0:00:39]}  Ke8 {[%clk 0:01:47]} 26. g3 {[%clk 0:00:31]}  Bd8 {[%clk 0:01:44]} 27. Qa7 {[%clk 0:00:30]}  Rb4 {[%clk 0:01:33]} 28. Qc5 {[%clk 0:00:27]}  Rb2 {[%clk 0:01:32]} 29. Qc3 {[%clk 0:00:22]}  Rb8 {[%clk 0:01:28]} 30. g4 {[%clk 0:00:23]}  g6 {[%clk 0:01:26]} 31. gxf5 {[%clk 0:00:22]}  gxf5 {[%clk 0:01:27]} 32. Qd2 {[%clk 0:00:22]}  Kf7 {[%clk 0:01:24]} 33. Qh6 {[%clk 0:00:22]}  Kg8 {[%clk 0:01:25]} 34. Be2 {[%clk 0:00:20]}  Be7 {[%clk 0:01:21]} 35. Qe3 {[%clk 0:00:12]}  Be8 {[%clk 0:01:10]} 36. Qa7 {[%clk 0:00:11]}  Rb1+ {[%clk 0:01:11]} 37. Kg2 {[%clk 0:00:11]}  Kf8 {[%clk 0:01:11]} 38. Qe3 {[%clk 0:00:10]}  Bg6 {[%clk 0:01:07]} 39. Qh6+ {[%clk 0:00:10]}  Kf7 {[%clk 0:01:07]} 40. Bh5 {[%clk 0:00:10]}  Bxh5 {[%clk 0:01:05]} 41. Qxh7+ {[%clk 0:00:10]}  Ke8 {[%clk 0:01:05]} 42. Qxh5+ {[%clk 0:00:10]}  Kd7 {[%clk 0:01:06]} 43. Qe2 {[%clk 0:00:10]}  Rb4 {[%clk 0:01:06]} 44. Qa6 {[%clk 0:00:09]}  Re4 {[%clk 0:01:04]} 45. Qb7+ {[%clk 0:00:09]}  Ke8 {[%clk 0:01:05]} 46. Qb8+ {[%clk 0:00:09]}  Kf7 {[%clk 0:01:03]} 47. f3 {[%clk 0:00:10]}  Re2+ {[%clk 0:01:02]} 48. Kf1 {[%clk 0:00:10]}  Rh2 {[%clk 0:01:02]} 49. Kg1 {[%clk 0:00:08]}  Rh7 {[%clk 0:01:01]} 50. Kg2 {[%clk 0:00:07]}  Rg7+ {[%clk 0:01:02]} 51. Kf2 {[%clk 0:00:08]}  Rg8 {[%clk 0:01:02]} 52. Qb3 {[%clk 0:00:07]}  d4 {[%clk 0:01:01]} 53. Qd3 {[%clk 0:00:06]}  Rc8 {[%clk 0:01:00]} 54. Kg3 {[%clk 0:00:04]}  Rg8+ {[%clk 0:00:59]} 55. Kf2 {[%clk 0:00:03]}  Rd8 {[%clk 0:00:58]} 56. Kg3 {[%clk 0:00:03]}  Bg5 {[%clk 0:00:58]} 57. f4 {[%clk 0:00:04]}  Be7 {[%clk 0:00:59]} 58. Kf3 {[%clk 0:00:04]}  Rd7 {[%clk 0:00:58]} 59. Ke2 {[%clk 0:00:04]}  Rd5 {[%clk 0:00:58]} 60. Qh3 {[%clk 0:00:04]}  d3+ {[%clk 0:00:57]} 61. Kd1 {[%clk 0:00:05]}  Ke8 {[%clk 0:00:57]} 62. Qh5+ {[%clk 0:00:04]}  Kd7 {[%clk 0:00:57]} 63. Qf3 {[%clk 0:00:03]}  Rd4 {[%clk 0:00:56]} 64. Qb7+ {[%clk 0:00:03]}  Ke8 {[%clk 0:00:57]} 65. Qa8+ {[%clk 0:00:03]}  Kf7 {[%clk 0:00:57]} 66. Qf3 {[%clk 0:00:02]}  d2 {[%clk 0:00:54]} 67. Qh5+ {[%clk 0:00:02]}  Kg7 {[%clk 0:00:54]} 68. Qh3 {[%clk 0:00:01]}  Rxf4 {[%clk 0:00:53]} 69. Kxd2 {[%clk 0:00:01]}  Re4 {[%clk 0:00:52]} 70. Qg3+ {[%clk 0:00:01]}  Kf7 {[%clk 0:00:53]} 71. Kd3 {[%clk 0:00:01]}  Rg4 {[%clk 0:00:52]} 72. Qh2 {[%clk 0:00:02]}  Kg7 {[%clk 0:00:51]} 73. Qh5 {[%clk 0:00:01]}  Rg6 {[%clk 0:00:50]} 74. Qh3 {[%clk 0:00:01]}  Bf8 {[%clk 0:00:44]} 75. Qh1 {[%clk 0:00:02]}  Kg8 {[%clk 0:00:44]} 76. Qb7 {[%clk 0:00:02]}  Bg7 {[%clk 0:00:43]} 77. Qb8+ {[%clk 0:00:02]}  Kh7 {[%clk 0:00:43]} 78. Qc8 {[%clk 0:00:02]}  Bxe5 {[%clk 0:00:43]} 79. Qe8 {[%clk 0:00:02]}  Bg7 {[%clk 0:00:43]} 80. Ke3 {[%clk 0:00:02]}  e5 {[%clk 0:00:43]} 81. Qd8 {[%clk 0:00:02]}  Bh6+ {[%clk 0:00:42]} 82. Kf3 {[%clk 0:00:02]}  e4+ {[%clk 0:00:42]} 83. Kf2 {[%clk 0:00:03]}  Bg5 {[%clk 0:00:40]} 84. Qd7+ {[%clk 0:00:03]}  Kh6 {[%clk 0:00:41]} 85. Qxf5 {[%clk 0:00:04]}  Rf6 {[%clk 0:00:41]} 86. Qxf6+ {[%clk 0:00:02]}  Bxf6 {[%clk 0:00:42]} 87. Ke3 {[%clk 0:00:02]}  Kg5 {[%clk 0:00:40]} 88. Kxe4 {[%clk 0:00:03]} 1/2-1/2


[Site "https://www.chess.com"]

[Event "Titled Tuesday Blitz July 18 Early 2023"]
[White "2KRK1"]
[Black "Ezat, Mohamed"]
[BlackFideId "10600906"]
[WhiteElo "2688"]
[BlackElo "2545"]
[Result "0-1"]
[Round "6"]
[TimeControl "180+2"]
[Date "2023.07.18"]
[WhiteClock "0:00:00"]
[BlackClock "0:00:21"]
[Board "62"]

1. Nf3 {[%clk 0:03:00]}  Nf6 {[%clk 0:02:47]} 2. b3 {[%clk 0:03:01]}  g6 {[%clk 0:02:44]} 3. Bb2 {[%clk 0:03:01]}  Bg7 {[%clk 0:02:44]} 4. g3 {[%clk 0:03:02]}  O-O {[%clk 0:02:43]} 5. Bg2 {[%clk 0:03:03]}  d6 {[%clk 0:02:43]} 6. d4 {[%clk 0:03:03]}  e5 {[%clk 0:02:42]} 7. dxe5 {[%clk 0:03:03]}  Nfd7 {[%clk 0:02:41]} 8. O-O {[%clk 0:03:01]}  Nc6 {[%clk 0:02:40]} 9. c4 {[%clk 0:02:36]}  Ndxe5 {[%clk 0:02:37]} 10. Qd2 {[%clk 0:02:35]}  a5 {[%clk 0:02:36]} 11. Nc3 {[%clk 0:02:35]}  a4 {[%clk 0:02:34]} 12. Nxa4 {[%clk 0:02:26]}  Nxc4 {[%clk 0:02:33]} 13. bxc4 {[%clk 0:02:26]}  Rxa4 {[%clk 0:02:32]} 14. Bxg7 {[%clk 0:02:15]}  Kxg7 {[%clk 0:02:33]} 15. Qc2 {[%clk 0:02:06]}  Ra5 {[%clk 0:02:23]} 16. Rfd1 {[%clk 0:01:23]}  Qf6 {[%clk 0:02:21]} 17. Rab1 {[%clk 0:01:13]}  Bf5 {[%clk 0:02:15]} 18. e4 {[%clk 0:01:10]}  Bg4 {[%clk 0:02:15]} 19. Rd3 {[%clk 0:00:41]}  Rfa8 {[%clk 0:02:04]} 20. a3 {[%clk 0:00:40]}  Rxa3 {[%clk 0:01:59]} 21. Rxa3 {[%clk 0:00:29]}  Rxa3 {[%clk 0:01:58]} 22. Ne1 {[%clk 0:00:20]}  Nd4 {[%clk 0:01:48]} 23. Qb2 {[%clk 0:00:19]}  Rb3 {[%clk 0:00:33]} 24. Qa1 {[%clk 0:00:15]}  b6 {[%clk 0:00:22]} 25. h3 {[%clk 0:00:12]}  Be6 {[%clk 0:00:22]} 26. Rxb3 {[%clk 0:00:00]}  Ne2+ {[%clk 0:00:21]} 0-1


[Site "https://www.chess.com"]

[Event "Titled Tuesday Blitz July 18 Early 2023"]
[White "Hajiyev, Kanan"]
[Black "Alex_Sahakyan2006"]
[WhiteFideId "13404148"]
[WhiteElo "2544"]
[BlackElo "2687"]
[Result "1-0"]
[Round "6"]
[TimeControl "180+2"]
[Date "2023.07.18"]
[WhiteClock "0:01:25"]
[BlackClock "0:00:19"]
[Board "63"]

1. d4 {[%clk 0:03:00]}  Nf6 {[%clk 0:02:57]} 2. Nf3 {[%clk 0:03:01]}  d5 {[%clk 0:02:51]} 3. c4 {[%clk 0:03:01]}  e6 {[%clk 0:02:49]} 4. cxd5 {[%clk 0:03:02]}  exd5 {[%clk 0:02:47]} 5. Nc3 {[%clk 0:03:03]}  c6 {[%clk 0:02:39]} 6. Qc2 {[%clk 0:03:03]}  g6 {[%clk 0:02:36]} 7. Bg5 {[%clk 0:03:03]}  Be7 {[%clk 0:02:21]} 8. e3 {[%clk 0:03:03]}  Bf5 {[%clk 0:02:19]} 9. Bd3 {[%clk 0:03:04]}  Bxd3 {[%clk 0:02:18]} 10. Qxd3 {[%clk 0:03:05]}  O-O {[%clk 0:02:16]} 11. O-O {[%clk 0:03:05]}  Ne4 {[%clk 0:02:15]} 12. Bh6 {[%clk 0:03:03]}  Re8 {[%clk 0:01:59]} 13. Nxe4 {[%clk 0:03:03]}  dxe4 {[%clk 0:02:00]} 14. Qxe4 {[%clk 0:03:04]}  Nd7 {[%clk 0:01:45]} 15. Qf4 {[%clk 0:02:49]}  Qa5 {[%clk 0:01:35]} 16. Bg5 {[%clk 0:02:32]}  Bf8 {[%clk 0:01:34]} 17. Qh4 {[%clk 0:02:24]}  Qd5 {[%clk 0:01:29]} 18. b3 {[%clk 0:02:18]}  Re4 {[%clk 0:01:27]} 19. Qh3 {[%clk 0:02:13]}  h5 {[%clk 0:01:14]} 20. Bf4 {[%clk 0:02:05]}  Nf6 {[%clk 0:00:57]} 21. Qg3 {[%clk 0:01:50]}  Rae8 {[%clk 0:00:47]} 22. Rac1 {[%clk 0:01:40]}  Qc5 {[%clk 0:00:19]} 23. dxc5 {[%clk 0:01:25]} 1-0


[Site "https://www.chess.com"]